lending/lending_fUSD_20250719
["ID","MTS","AMOUNT","RATE_DAILY","PERIOD"]
[373366082,1752969075281,-1303.77,0.00019616,2]
[373366083,1752969075294,-480.0,0.00019616,2]
[373366084,1752969075308,-508.03,0.00019616,2]
[373366085,1752969075322,-563.66,0.00019616,2]
[373366086,1752969075336,-480.0,0.00019616,2]
[373366087,1752969075349,-959.83,0.00019616,2]
[373366088,1752969075363,-480.0,0.00019616,2]
[373366089,1752969075377,-1481.71,0.00019616,2]
[373366090,1752969075392,-480.0,0.00019616,2]
[373366091,1752969075407,-693.06,0.00019616,2]
[373366092,1752969075420,-480.0,0.00019616,2]
[373366093,1752969075435,-540.35,0.00019616,2]
[373366094,1752969075449,-480.0,0.00019616,2]
[373366095,1752969075464,-528.04007582,0.00019616,2]
[373366096,1752969075477,-480.0,0.00019616,2]
[373366097,1752969075491,-480.0,0.00019616,2]
[373366098,1752969075505,-480.0,0.00019616,2]
[373366099,1752969075519,-480.0,0.00019616,2]
[373366100,1752969075533,-480.0,0.00019616,2]
[373366101,1752969075546,-480.0,0.00019616,2]
[373366102,1752969075561,-480.0,0.00019616,2]
[373366103,1752969075575,-392.16,0.00019616,2]
[373366104,1752969075589,-480.0,0.00019616,2]
[373366105,1752969075603,-480.0,0.00019616,2]
[373366106,1752969075617,-31606.63,0.00019616,2]
[373366107,1752969075631,-480.0,0.00019616,2]
[373366108,1752969075646,-480.0,0.00019616,2]
[373366109,1752969075660,-522.45,0.00019616,2]
[373366110,1752969075675,-480.0,0.00019616,2]
[373366111,1752969075690,-589.16,0.00019616,2]
[373366112,1752969075704,-480.0,0.00019616,2]
[373366113,1752969075718,-665.15,0.00019616,2]
[373366114,1752969075732,-3819.61,0.00019616,2]
[373366115,1752969075747,-480.0,0.00019616,2]
[373366116,1752969075761,-511.88,0.00019616,2]
[373366117,1752969075774,-480.0,0.00019616,2]
[373366118,1752969075789,-242.44007539,0.00019616,2]
[373366119,1752969075802,-1381.94,0.00019616,2]
[373366120,1752969075816,-480.0,0.00019616,2]
[373366121,1752969075831,-480.0,0.00019616,2]
[373366122,1752969075844,-693.28,0.00019616,2]
[373366123,1752969075859,-480.0,0.00019616,2]
[373366124,1752969075874,-740.08,0.00019616,2]
[373366125,1752969075889,-480.0,0.00019616,2]
[373366126,1752969075904,-480.0,0.00019616,2]
[373366127,1752969075919,-3992.9,0.00019616,2]
[373366128,1752969075934,-480.0,0.00019616,2]
[373366129,1752969075949,-480.0,0.00019616,2]
[373366130,1752969075962,-258.95013487,0.00019616,2]
[373366131,1752969075980,-808.27,0.00019616,2]
[373366132,1752969075997,-480.0,0.00019616,2]
[373366133,1752969076009,-480.0,0.00019616,2]
[373366134,1752969076018,-669.4,0.00019616,2]
[373366135,1752969076028,-1661.89,0.00019616,2]
[373366136,1752969076037,-653.72,0.00019616,2]
[373366137,1752969076046,-600.13,0.00019616,2]
[373366138,1752969076055,-480.0,0.00019616,2]
[373366139,1752969076065,-577.71,0.00019616,2]
[373366140,1752969076075,-480.0,0.00019616,2]
[373366141,1752969076084,-480.0,0.00019616,2]
[373366142,1752969076094,-3427.31,0.00019616,2]
[373366143,1752969076104,-480.0,0.00019616,2]
[373366144,1752969076115,-1688.55,0.00019616,2]
[373366145,1752969076124,-480.0,0.00019616,2]
[373366146,1752969076135,-480.0,0.00019616,2]
[373366147,1752969076146,-2936.63,0.00019616,2]
[373366148,1752969076156,-1373.32,0.00019616,2]
[373366149,1752969076166,-480.0,0.00019616,2]
[373366150,1752969076177,-480.0,0.00019616,2]
[373366151,1752969076188,-693.68,0.00019616,2]
[373366152,1752969076200,-3278.32,0.00019616,2]
[373366153,1752969076541,-758.33,0.00019616,2]
[373366154,1752969076569,-1002.9,0.00019616,2]
[373366155,1752969076583,-2861.18,0.00019616,2]
[373366156,1752969076595,-2214.67,0.00019616,2]
[373366157,1752969076605,-493.16,0.00019616,2]
[373366158,1752969076614,-480.0,0.00019616,2]
[373366159,1752969076624,-292.69608155,0.00019616,2]
[373366160,1752969076634,-2410.65,0.00019616,2]
[373366161,1752969076643,-1000.0,0.00019616,2]
[373366162,1752969076654,-480.0,0.00019616,2]
[373366163,1752969076664,-480.0,0.00019616,2]
[373366164,1752969076673,-480.0,0.00019616,2]
[373366165,1752969076682,-1529.67,0.00019616,2]
[373366166,1752969076692,-480.0,0.00019616,2]
[373366167,1752969076702,-480.0,0.00019616,2]
[373366168,1752969076712,-757.31,0.00019616,2]
[373366169,1752969076721,-480.0,0.00019616,2]
[373366170,1752969076731,-480.0,0.00019616,2]
[373366171,1752969076741,-918.64,0.00019616,2]
[373366172,1752969076751,-1858.06,0.00019616,2]
[373366173,1752969076760,-480.0,0.00019616,2]
[373366174,1752969076771,-1198.99,0.00019616,2]
[373366175,1752969076780,-789.78,0.00019616,2]
[373366176,1752969076789,-3176.18,0.00019616,2]
[373366177,1752969076799,-480.0,0.00019616,2]
[373366178,1752969076808,-1230.5,0.00019616,2]
[373366179,1752969076818,-1404.13,0.00019616,2]
[373366180,1752969076827,-900.76,0.00019616,2]
[373366181,1752969076836,-3599.1,0.00019616,2]
[373366182,1752969076846,-480.0,0.00019616,2]
[373366183,1752969076856,-1870.61,0.00019616,2]
[373366184,1752969076865,-480.0,0.00019616,2]
[373366185,1752969076875,-1121.97,0.00019616,2]
[373366186,1752969076884,-480.0,0.00019616,2]
[373366187,1752969076894,-480.0,0.00019616,2]
[373366188,1752969076904,-1257.9,0.00019616,2]
[373366189,1752969076914,-480.0,0.00019616,2]
[373366190,1752969076923,-798.59,0.00019616,2]
[373366191,1752969076933,-480.0,0.00019616,2]
[373366192,1752969076943,-686.13,0.00019616,2]
[373366193,1752969076954,-480.0,0.00019616,2]
[373366194,1752969076964,-1033.68,0.00019616,2]
[373366195,1752969076977,-480.0,0.00019616,2]
[373366196,1752969076988,-2396.83,0.00019616,2]
[373366197,1752969076998,-906.66,0.00019616,2]
[373366198,1752969077009,-1805.61,0.00019616,2]
[373366199,1752969077020,-480.0,0.00019616,2]
[373366200,1752969077029,-674.24,0.00019616,2]
[373366201,1752969077039,-1136.62,0.00019616,2]
[373366202,1752969077049,-847.36,0.00019616,2]
[373366203,1752969077060,-1106.58,0.00019616,2]
[373366204,1752969077069,-1030.85,0.00019616,2]
[373366205,1752969077080,-480.0,0.00019616,2]
[373366206,1752969077089,-1696.34,0.00019616,2]
[373366207,1752969077099,-4439.75,0.00019616,2]
[373366208,1752969077108,-585.34,0.00019616,2]
[373366209,1752969077119,-563.35,0.00019616,2]
[373366210,1752969077129,-1856.23,0.00019616,2]
[373366211,1752969077141,-500.56,0.00019616,2]
[373366212,1752969077150,-3913.18,0.00019616,2]
[373366213,1752969077159,-2584.47,0.00019616,2]
[373366214,1752969077168,-480.0,0.00019616,2]
[373366215,1752969077178,-480.0,0.00019616,2]
[373366216,1752969077187,-530.62,0.00019616,2]
[373366217,1752969077197,-441.1918524,0.00019616,2]
[373366218,1752969077206,-480.0,0.00019616,2]
[373366219,1752969077215,-480.0,0.00019616,2]
[373366220,1752969077224,-1002.3,0.00019616,2]
[373366221,1752969077234,-480.0,0.00019616,2]
[373366222,1752969077243,-480.0,0.00019616,2]
[373366223,1752969077253,-1338.78,0.00019616,2]
[373366224,1752969077263,-1370.48,0.00019616,2]
[373366225,1752969077272,-947.08,0.00019616,2]
[373366226,1752969077282,-480.0,0.00019616,2]
[373366227,1752969077291,-1249.62,0.00019616,2]
[373366228,1752969077300,-480.0,0.00019616,2]
[373366229,1752969077309,-480.0,0.00019616,2]
[373366230,1752969077318,-711.6,0.00019616,2]
[373366231,1752969077328,-480.0,0.00019616,2]
[373366232,1752969077337,-480.0,0.00019616,2]
[373366233,1752969077346,-823.71,0.00019616,2]
[373366234,1752969077355,-736.37,0.00019616,2]
[373366235,1752969077364,-191.34,0.00019616,2]
[373366236,1752969077373,-480.0,0.00019616,2]
[373366237,1752969077382,-661.84,0.00019616,2]
[373366238,1752969077391,-847.62,0.00019616,2]
[373366239,1752969077400,-480.0,0.00019616,2]
[373366240,1752969077409,-1343.31,0.00019616,2]
[373366241,1752969077419,-480.0,0.00019616,2]
[373366242,1752969077428,-1822.26,0.00019616,2]
[373366243,1752969077438,-4318.28,0.00019616,2]
[373366244,1752969077447,-480.0,0.00019616,2]
[373366245,1752969077456,-480.0,0.00019616,2]
[373366246,1752969077465,-774.19,0.00019616,2]
[373366247,1752969077475,-480.0,0.00019616,2]
[373366248,1752969077484,-1174.49,0.00019616,2]
[373366249,1752969077494,-2874.3,0.00019616,2]
[373366250,1752969077503,-951.44,0.00019616,2]
[373366251,1752969077513,-1691.47,0.00019616,2]
[373366252,1752969077522,-630.63,0.00019616,2]
[373366253,1752969077532,-480.0,0.00019616,2]
[373366254,1752969077544,-700.07,0.00019616,2]
[373366255,1752969077554,-1549.38,0.00019616,2]
[373366256,1752969077563,-5716.84,0.00019616,2]
[373366257,1752969077573,-996.91,0.00019616,2]
[373366258,1752969077582,-4831.41,0.00019616,2]
[373366259,1752969077591,-677.52,0.00019616,2]
[373366260,1752969077601,-480.0,0.00019616,2]
[373366261,1752969077610,-704.05,0.00019616,2]
[373366262,1752969077620,-1263.65,0.00019616,2]
[373366263,1752969077629,-480.0,0.00019616,2]
[373366264,1752969077638,-803.57,0.00019616,2]
[373366265,1752969077648,-480.0,0.00019616,2]
[373366266,1752969077658,-6401.58,0.00019616,2]
[373366267,1752969077667,-1629.05,0.00019616,2]
[373366268,1752969077676,-833.26,0.00019616,2]
[373366269,1752969077686,-480.0,0.00019616,2]
[373366270,1752969077695,-480.0,0.00019616,2]
[373366271,1752969077705,-770.49,0.00019616,2]
[373366272,1752969077714,-1180.58,0.00019616,2]
[373366273,1752969077724,-1068.15,0.00019616,2]
[373366274,1752969077734,-513.42,0.00019616,2]
[373366275,1752969077743,-673.42,0.00019616,2]
[373366276,1752969077752,-1202.81,0.00019616,2]
[373366277,1752969077762,-1781.66,0.00019616,2]
[373366278,1752969077771,-480.0,0.00019616,2]
[373366279,1752969077781,-4542.83,0.00019616,2]
[373366280,1752969077790,-654.87,0.00019616,2]
[373366281,1752969077800,-7527.29,0.00019616,2]
[373366282,1752969077809,-480.0,0.00019616,2]
[373366283,1752969077819,-480.0,0.00019616,2]
[373366284,1752969077828,-7286.77,0.00019616,2]
[373366285,1752969077838,-1270.14,0.00019616,2]
[373366286,1752969077847,-572.8,0.00019616,2]
[373366287,1752969077857,-835.06,0.00019616,2]
[373366288,1752969077867,-1098.09,0.00019616,2]
[373366289,1752969077876,-590.03,0.00019616,2]
[373366290,1752969077885,-1082.49,0.00019616,2]
[373366291,1752969077896,-1423.29,0.00019616,2]
[373366292,1752969077906,-2403.03,0.00019616,2]
[373366293,1752969077915,-480.0,0.00019616,2]
[373366294,1752969077924,-2309.79,0.00019616,2]
[373366295,1752969077934,-1362.51,0.00019616,2]
[373366296,1752969077943,-758.68,0.00019616,2]
[373366297,1752969077952,-1187.56,0.00019616,2]
[373366298,1752969077962,-998.13,0.00019616,2]
[373366299,1752969077971,-1176.16,0.00019616,2]
[373366300,1752969077981,-5455.89,0.00019616,2]
[373366301,1752969077990,-712.89,0.00019616,2]
[373366302,1752969077999,-1065.39,0.00019616,2]
[373366303,1752969078009,-523.74,0.00019616,2]
[373366304,1752969078018,-2390.04,0.00019616,2]
[373366305,1752969078027,-480.0,0.00019616,2]
[373366306,1752969078037,-2407.98,0.00019616,2]
[373366307,1752969078047,-480.0,0.00019616,2]
[373366308,1752969078056,-1594.22,0.00019616,2]
[373366309,1752969078066,-2070.52,0.00019616,2]
[373366310,1752969078076,-480.0,0.00019616,2]
[373366311,1752969078085,-1711.58,0.00019616,2]
[373366312,1752969078094,-845.99,0.00019616,2]
[373366313,1752969078104,-2173.84,0.00019616,2]
[373366314,1752969078114,-933.76,0.00019616,2]
[373366315,1752969078123,-480.0,0.00019616,2]
[373366316,1752969078133,-631.99,0.00019616,2]
[373366317,1752969078144,-643.33,0.00019616,2]
[373366318,1752969078154,-1082.59,0.00019616,2]
[373366319,1752969078164,-480.0,0.00019616,2]
[373366320,1752969078174,-480.0,0.00019616,2]
[373366321,1752969078183,-1341.37,0.00019616,2]
[373366322,1752969078193,-480.0,0.00019616,2]
[373366323,1752969078203,-951.96,0.00019616,2]
[373366324,1752969078213,-1364.53,0.00019616,2]
[373366325,1752969078222,-1264.86,0.00019616,2]
[373366326,1752969078231,-1205.5,0.00019616,2]
[373366327,1752969078241,-590.9,0.00019616,2]
[373366328,1752969078250,-606.34,0.00019616,2]
[373366329,1752969078259,-2222.73,0.00019616,2]
[373366330,1752969078268,-858.71,0.00019616,2]
[373366331,1752969078278,-2113.9,0.00019616,2]
[373366332,1752969078287,-480.0,0.00019616,2]
[373366333,1752969078296,-744.94,0.00019616,2]
[373366334,1752969078305,-1657.84,0.00019616,2]
[373366335,1752969078314,-489.11,0.00019616,2]
[373366336,1752969078324,-1369.89,0.00019616,2]
[373366337,1752969078334,-1296.25,0.00019616,2]
[373366338,1752969078344,-400.0,0.00019616,2]
[373366339,1752969078353,-480.0,0.00019616,2]
[373366340,1752969078363,-1298.9,0.00019616,2]
[373366341,1752969078372,-480.0,0.00019616,2]
[373366342,1752969078382,-1137.97,0.00019616,2]
[373366343,1752969078391,-480.0,0.00019616,2]
[373366344,1752969078401,-10867.87,0.00019616,2]
[373366345,1752969078410,-480.0,0.00019616,2]
[373366346,1752969078419,-1221.92,0.00019616,2]
[373366347,1752969078428,-480.0,0.00019616,2]
[373366348,1752969078438,-1210.0,0.00019623,2]
[373366349,1752969078447,-1210.0,0.00019623,2]
[373366350,1752969078456,-1210.0,0.00019623,2]
[373366351,1752969078465,-1210.0,0.00019623,2]
[373366352,1752969078475,-1210.0,0.00019623,2]
[373366353,1752969078484,-1210.0,0.00019623,2]
[373366354,1752969078494,-1210.0,0.00019623,2]
[373366355,1752969078503,-1210.0,0.00019623,2]
[373366356,1752969078512,-1210.0,0.00019623,2]
[373366357,1752969078521,-1210.0,0.00019623,2]
[373366358,1752969078531,-1210.0,0.00019623,2]
[373366359,1752969078540,-1210.0,0.00019623,2]
[373366360,1752969078550,-1210.0,0.00019623,2]
[373366361,1752969078559,-1210.0,0.00019623,2]
[373366362,1752969078568,-1210.0,0.00019623,2]
[373366363,1752969078577,-1210.0,0.00019623,2]
[373366364,1752969078587,-1210.0,0.00019623,2]
[373366365,1752969078596,-1210.0,0.00019623,2]
[373366366,1752969078605,-1210.0,0.00019623,2]
[373366367,1752969078615,-1210.0,0.00019623,2]
[373366368,1752969078624,-1210.0,0.00019623,2]
[373366369,1752969078634,-1210.0,0.00019623,2]
[373366370,1752969078642,-1210.0,0.00019623,2]
[373366371,1752969078652,-1210.0,0.00019623,2]
[373366372,1752969078661,-1210.0,0.00019623,2]
[373366373,1752969078670,-1210.0,0.00019623,2]
[373366374,1752969078679,-1210.0,0.00019623,2]
[373366375,1752969078688,-1210.0,0.00019623,2]
[373366376,1752969078698,-906.80080915,0.00019623,2]
[373366377,1752969078708,-641.13063196,0.00019624,2]
[373366378,1752969078717,-168.0,0.00019626,2]
[373366379,1752969078727,-151.0,0.00019626,2]
[373366380,1752969078736,-151.0,0.00019626,2]
[373366381,1752969078746,-357.75862008,0.00019626,4]
[373366382,1752969078756,-357.75862008,0.00019626,4]
[373366383,1752969078765,-357.75862008,0.00019626,4]
[373366384,1752969078774,-357.75862008,0.00019626,4]
[373366385,1752969078783,-357.75862008,0.00019626,4]
[373366386,1752969078792,-357.75862008,0.00019626,4]
[373366387,1752969078801,-357.75862008,0.00019626,4]
[373366388,1752969078811,-357.75862008,0.00019626,4]
[373366389,1752969078820,-357.75862008,0.00019626,4]
[373366390,1752969078829,-357.75862008,0.00019626,4]
[373366391,1752969078839,-357.75862008,0.00019626,4]
[373366392,1752969078848,-357.75862008,0.00019626,4]
[373366393,1752969078857,-357.75862008,0.00019626,4]
[373366394,1752969078866,-357.75862008,0.00019626,4]
[373366395,1752969078875,-357.75862008,0.00019626,4]
[373366396,1752969078885,-357.75862008,0.00019626,4]
[373366397,1752969078896,-357.75862008,0.00019626,4]
[373366398,1752969078905,-357.75862008,0.00019626,4]
[373366399,1752969078915,-357.75862008,0.00019626,4]
[373366400,1752969078924,-357.75,0.00019626,4]
[373366401,1752969078933,-271.44076136,0.00019626,4]
[373366402,1752969078943,-271.44076136,0.00019626,4]
[373366403,1752969078952,-271.44076136,0.00019626,4]
[373366404,1752969078961,-271.44076136,0.00019626,4]
[373366405,1752969078972,-271.44076136,0.00019626,4]
[373366406,1752969078982,-271.44076136,0.00019626,4]
[373366407,1752969078991,-271.44076136,0.00019626,4]
[373366408,1752969079001,-271.44076136,0.00019626,4]
[373366409,1752969079010,-271.44076136,0.00019626,4]
[373366410,1752969079019,-271.44076136,0.00019626,4]
[373366411,1752969079028,-271.44076136,0.00019626,4]
[373366412,1752969079037,-271.44076136,0.00019626,4]
[373366413,1752969079046,-271.44076136,0.00019626,4]
[373366414,1752969079056,-271.44076136,0.00019626,4]
[373366415,1752969079065,-271.44076136,0.00019626,4]
[373366416,1752969079075,-271.44076136,0.00019626,4]
[373366417,1752969079084,-271.44076136,0.00019626,4]
[373366418,1752969079094,-271.44076136,0.00019626,4]
[373366419,1752969079103,-271.44076136,0.00019626,4]
[373366420,1752969079112,-271.44,0.00019626,4]
[373366421,1752969079121,-447.35044184,0.00019626,4]
[373366422,1752969079130,-447.35044184,0.00019626,4]
[373366423,1752969079139,-447.35044184,0.00019626,4]
[373366424,1752969079148,-447.35044184,0.00019626,4]
[373366425,1752969079158,-447.35044184,0.00019626,4]
[373366426,1752969079167,-447.35044184,0.00019626,4]
[373366427,1752969079177,-447.35044184,0.00019626,4]
[373366428,1752969079186,-447.35044184,0.00019626,4]
[373366429,1752969079196,-447.35044184,0.00019626,4]
[373366430,1752969079205,-447.35044184,0.00019626,4]
[373366431,1752969079215,-447.35044184,0.00019626,4]
[373366432,1752969079224,-447.35044184,0.00019626,4]
[373366433,1752969079235,-447.35044184,0.00019626,4]
[373366434,1752969079244,-447.35044184,0.00019626,4]
[373366435,1752969079254,-447.35044184,0.00019626,4]
[373366436,1752969079264,-447.35044184,0.00019626,4]
[373366437,1752969079274,-447.35044184,0.00019626,4]
[373366438,1752969079285,-447.35044184,0.00019626,4]
[373366439,1752969079295,-447.35044184,0.00019626,4]
[373366440,1752969079305,-447.35,0.00019626,4]
[373366441,1752969079316,-300.95,0.00019671,2]
[373366442,1752969079327,-168.0,0.00019693,2]
[373366443,1752969079339,-641.13063196,0.00019693,2]
[373366444,1752969079350,-3207.75,0.000197,2]
[373366445,1752969079360,-307.93,0.00019703,2]
[373366446,1752969079370,-1083.0,0.00019711,2]
[373366447,1752969079379,-1560.48,0.00019712,2]
[373366448,1752969079389,-1560.48,0.00019712,2]
[373366449,1752969079398,-1560.48,0.00019712,2]
[373366450,1752969079407,-1560.48,0.00019712,2]
[373366451,1752969079417,-1560.70831455,0.00019712,2]
[373366452,1752969079426,-500.0,0.00019721,2]
[373366453,1752969079436,-168.0,0.00019724,2]
[373366454,1752969079447,-168.0,0.00019724,2]
[373366455,1752969079456,-760.29528517,0.00019725,2]
[373366456,1752969079467,-541.71,0.00019725,2]
[373366457,1752969079476,-541.71,0.00019725,2]
[373366458,1752969079486,-541.71,0.00019725,2]
[373366459,1752969079495,-541.71,0.00019725,2]
[373366460,1752969079504,-541.72,0.00019725,2]
[373366461,1752969079513,-151.0,0.00019726,2]
[373366462,1752969079523,-151.0,0.00019726,2]
[373366463,1752969079532,-151.0,0.00019726,2]
[373366464,1752969079541,-151.0,0.00019726,2]
[373366465,1752969079551,-151.0,0.00019726,2]
[373366466,1752969079560,-151.0,0.00019726,2]
[373366467,1752969079569,-383.900494,0.00019726,2]
[373366468,1752969079578,-409.308374,0.00019726,2]
[373366469,1752969079587,-364.762199,0.00019726,2]
[373366470,1752969079597,-151.0,0.00019726,2]
[373366471,1752969079607,-164.670339,0.00019726,2]
[373366472,1752969079616,-201.230558,0.00019726,2]
[373366473,1752969079625,-201.230558,0.00019726,2]
[373366474,1752969079634,-422.172838,0.00019726,2]
[373366475,1752969079644,-422.172838,0.00019726,2]
[373366476,1752969079654,-151.0,0.00019726,2]
[373366477,1752969079663,-151.0,0.00019726,2]
[373366478,1752969079673,-151.0,0.00019726,2]
[373366479,1752969079683,-151.0,0.00019726,2]
[373366480,1752969079694,-151.0,0.00019726,2]
[373366481,1752969079703,-151.0,0.00019726,2]
[373366482,1752969079712,-218.25184,0.00019726,2]
[373366483,1752969079722,-218.25184,0.00019726,2]
[373366484,1752969079731,-151.0,0.00019726,2]
[373366485,1752969079741,-151.0,0.00019726,2]
[373366486,1752969079918,-151.0,0.00019726,2]
[373366487,1752969079934,-151.0,0.00019726,2]
[373366488,1752969079944,-352.974085,0.00019726,2]
[373366489,1752969079953,-352.974085,0.00019726,2]
[373366490,1752969079962,-151.0,0.00019726,2]
[373366491,1752969079972,-151.0,0.00019726,2]
[373366492,1752969079982,-151.0,0.00019726,2]
[373366493,1752969079991,-281.117536,0.00019726,2]
[373366494,1752969080000,-281.117536,0.00019726,2]
[373366495,1752969080010,-512.67,0.00019726,2]
[373366496,1752969080020,-151.0,0.00019726,2]
[373366497,1752969080029,-151.0,0.00019726,2]
[373366498,1752969080039,-200.378326,0.00019726,2]
[373366499,1752969080048,-200.378326,0.00019726,2]
[373366500,1752969080057,-151.0,0.00019726,2]
[373366501,1752969080067,-161.532532,0.00019726,2]
[373366502,1752969080076,-480.0,0.00019726,2]
[373366503,1752969080086,-480.0,0.00019726,2]
[373366504,1752969080095,-480.0,0.00019726,2]
[373366505,1752969080105,-231.281776,0.00019726,2]
[373366506,1752969080114,-151.0,0.00019726,2]
[373366507,1752969080123,-193.036956,0.00019726,2]
[373366508,1752969080133,-151.0,0.00019726,2]
[373366509,1752969080143,-480.0,0.00019726,2]
[373366510,1752969080152,-480.0,0.00019726,2]
[373366511,1752969080162,-151.0,0.00019726,2]
[373366512,1752969080173,-151.0,0.00019726,2]
[373366513,1752969080184,-480.0,0.00019726,2]
[373366514,1752969080193,-480.0,0.00019726,2]
[373366515,1752969080203,-296.87469601,0.00019726,2]
[373366516,1752969080213,-480.0,0.00019726,2]
[373366517,1752969080222,-480.0,0.00019726,2]
[373366518,1752969080232,-480.0,0.00019726,2]
[373366519,1752969080242,-480.0,0.00019726,2]
[373366520,1752969080251,-480.0,0.00019726,2]
[373366521,1752969080261,-480.0,0.00019726,2]
[373366522,1752969080271,-480.0,0.00019726,2]
[373366523,1752969080280,-480.0,0.00019726,2]
[373366524,1752969080290,-480.0,0.00019726,2]
[373366525,1752969080299,-1432.69,0.00019726,2]
[373366526,1752969080309,-480.0,0.00019726,2]
[373366527,1752969080318,-480.0,0.00019726,2]
[373366528,1752969080328,-480.0,0.00019726,2]
[373366529,1752969080337,-480.0,0.00019726,2]
[373366530,1752969080347,-480.0,0.00019726,2]
[373366531,1752969080356,-480.0,0.00019726,2]
[373366532,1752969080365,-480.0,0.00019726,2]
[373366533,1752969080374,-525.05,0.00019726,2]
[373366534,1752969080384,-296.65952635,0.00019726,2]
[373366535,1752969080394,-739.94,0.00019726,2]
[373366536,1752969080404,-597.34,0.00019726,2]
[373366537,1752969080413,-595.53,0.00019726,2]
[373366538,1752969080423,-562.7,0.00019726,2]
[373366539,1752969080432,-480.0,0.00019726,2]
[373366540,1752969080442,-480.0,0.00019726,2]
[373366541,1752969080452,-480.0,0.00019726,2]
[373366542,1752969080462,-725.42,0.00019726,2]
[373366543,1752969080471,-480.0,0.00019726,2]
[373366544,1752969080481,-480.0,0.00019726,2]
[373366545,1752969080491,-1026.84,0.00019726,2]
[373366546,1752969080501,-480.0,0.00019726,2]
[373366547,1752969080510,-480.0,0.00019726,2]
[373366548,1752969080520,-480.0,0.00019726,2]
[373366549,1752969080529,-480.0,0.00019726,2]
[373366550,1752969080539,-480.0,0.00019726,2]
[373366551,1752969080549,-985.98,0.00019726,2]
[373366552,1752969080558,-480.0,0.00019726,2]
[373366553,1752969080568,-480.0,0.00019726,2]
[373366554,1752969080578,-480.0,0.00019726,2]
[373366555,1752969080587,-480.0,0.00019726,2]
[373366556,1752969080597,-480.0,0.00019726,2]
[373366557,1752969080606,-480.0,0.00019726,2]
[373366558,1752969080616,-480.0,0.00019726,2]
[373366559,1752969080626,-480.0,0.00019726,2]
[373366560,1752969080635,-711.26,0.00019726,2]
[373366561,1752969080646,-723.22,0.00019726,2]
[373366562,1752969080655,-480.0,0.00019726,2]
[373366563,1752969080665,-480.0,0.00019726,2]
[373366564,1752969080675,-480.0,0.00019726,2]
[373366565,1752969080684,-480.0,0.00019726,2]
[373366566,1752969080694,-813.19,0.00019726,2]
[373366567,1752969080704,-480.0,0.00019726,2]
[373366568,1752969080714,-480.0,0.00019726,2]
[373366569,1752969080723,-552.67,0.00019726,2]
[373366570,1752969080733,-480.0,0.00019726,2]
[373366571,1752969080742,-480.0,0.00019726,2]
[373366572,1752969080751,-480.0,0.00019726,2]
[373366573,1752969080761,-553.94,0.00019726,2]
[373366574,1752969080771,-480.0,0.00019726,2]
[373366575,1752969080780,-480.0,0.00019726,2]
[373366576,1752969080790,-480.0,0.00019726,2]
[373366577,1752969080799,-480.0,0.00019726,2]
[373366578,1752969080808,-808.09,0.00019726,2]
[373366579,1752969080817,-480.0,0.00019726,2]
[373366580,1752969080827,-1118.97,0.00019726,2]
[373366581,1752969080836,-480.0,0.00019726,2]